Cogmind - Beta 14 @@@ ROGUE MODE // 2025.01.09 @ 15:06:50 Player: acra Result: Destroyed by P-80 Master with Gamma Rifle Performance ------------- Evolutions (5) 2500 Regions Visited (9) 1800 Robots Destroyed (81) 405 Value Destroyed (3341) 3341 Prototype IDs (14) 280 Alien Tech Used (0) 0 Bonus (2164) 2164 TOTAL SCORE: 10490 Bonus ------- Met Warlord at Base 500 MAIN.C Attacked Warlord 500 Warlord Defense Kills 1164 Cogmind --------- Core Integrity 0/1000 Matter 290/300 Energy 85/100 System Corruption 11% Temperature Cool (0) Movement Core (400) Ox7 Location -5/Warlord Parts ------- > --- POWER (1) -------- (None) > --- PROPULSION (3) --- (None) > --- UTILITY (10) ----- Large Storage Unit Targeting Computer Target Analyzer Hacking Suite Hacking Suite > --- WEAPON (3) ------- Heavy Laser > --- INVENTORY (15) --- Flexi-carbon Leg Seismic Detector Energy Filter Advanced ECM Suite Improved Medium Armor Plating Hacking Suite Heavy Laser Heavy Beamcaster Chainsword Peak State ------------ > --- POWER ------------ Light Antimatter Reactor > --- PROPULSION ------- Carbon-fiber Leg Flexi-carbon Leg Flexi-carbon Leg > --- UTILITY ---------- Advanced Heat Sink Advanced Heat Sink Advanced Cooling System Large Storage Unit Targeting Computer Targeting Computer Target Analyzer Hacking Suite Hacking Suite Hacking Suite > --- WEAPON ----------- Heavy Laser Beamcaster Heavy Missile Launcher > --- INVENTORY -------- Flexi-carbon Leg Compact Wheel Seismic Detector Energy Filter Advanced ECM Suite Improved Medium Armor Plating Hacking Suite Heavy Laser Gatling Laser Heavy Beamcaster Vortex Rifle Vortex Rifle Chainsword [Rating: 69] Favorites ----------- Power Improved Deuterium Engine Engine Improved Deuterium Engine Power Core Light Nuclear Core Reactor Light Antimatter Reactor Propulsion Improved Titanium Leg Leg Improved Titanium Leg Wheel Wheel Utility Hacking Suite Device Advanced Heat Sink Storage Large Storage Unit Processor Targeting Computer Hackware Hacking Suite Protection Utility Shielding Weapon Heavy Laser Energy Gun Heavy Laser Energy Cannon Ion Cannon Ballistic Gun Gauss Rifle Launcher Heavy Missile Launcher Impact Weapon Hammer Slashing Weapon Chainsword Build | -11 -10 -9 -8 -7 -6 -5 -5 -5 -5 ------- Run | Yrd Mat Mat Mat Fac Fac Fac Upp Upp War Slots Evolved 10 | . . 2 2 2 2 2 . . . Power . | . . . . . . . . . . Propulsion 1 | . . . 1 . . . . . . Utility 8 | . . 1 1 2 2 2 . . . Weapon 1 | . . 1 . . . . . . . Parts Attached 165 | 7 1 7 22 37 45 5 . 13 28 Power 17 | 1 . . 4 3 4 . . 3 2 Engine 9 | 1 . . 4 . 2 . . 2 . Core 6 | . . . . 3 1 . . 1 1 Reactor 2 | . . . . . 1 . . . 1 Propulsion 45 | 2 . 1 6 10 7 1 . 6 12 Treads . | . . . . . . . . . . Leg 40 | 2 . . 5 9 7 1 . 6 10 Wheel 5 | . . 1 1 1 . . . . 2 Hover . | . . . . . . . . . . Flight . | . . . . . . . . . . Utility 45 | 2 1 1 8 9 16 4 . 2 2 Device 23 | 1 . . 5 5 8 1 . 1 2 Storage 3 | 1 1 . . 1 . . . . . Processor 3 | . . . . . 1 1 . 1 . Hackware 5 | . . 1 1 1 1 1 . . . Protection 11 | . . . 2 2 6 1 . . . Artifact . | . . . . . . . . . . Weapon 58 | 2 . 5 4 15 18 . . 2 12 Energy Gun 34 | 2 . 3 2 6 9 . . 2 10 Energy Cannon 4 | . . . . 4 . . . . . Ballistic Gun 8 | . . . 1 . 7 . . . . Ballistic Cannon . | . . . . . . . . . . Launcher 2 | . . . . . . . . . 2 Special Weapon . | . . . . . . . . . . Impact Weapon 5 | . . 2 1 2 . . . . . Slashing Weapon 5 | . . . . 3 2 . . . . Piercing Weapon . | . . . . . . . . . . Special Melee Weapon . | . . . . . . . . . . Unidentified Prototypes 2 | . . . . . . . . . 2 Corrupted Parts 2 | . . . . . . . . 1 1 System Corruption 5 | . . . . . . . . 2 3 Parts Lost 57 | . . . 9 11 12 . . 6 19 Power 7 | . . . 1 1 1 . . 1 3 Propulsion 13 | . . . 4 4 . . . 1 4 Utility 19 | . . . 1 3 7 . . 2 6 Weapon 18 | . . . 3 3 4 . . 2 6 Highest Loss Streak 18 | . . . 5 4 5 . . 5 18 To Critical Strikes . | . . . . . . . . . . Average Slot Usage (%) 98 | . 100 99 93 98 98 99 100 99 98 Engine 3 | . 14 11 8 1 . 5 5 1 4 Core 2 | . . . . 5 2 . . 3 . Leg 19 | . 28 13 18 22 19 17 17 17 16 Device 16 | . 14 11 10 17 16 17 17 16 16 Storage 6 | . 14 11 9 7 6 5 5 5 5 Processor 5 | . . . . . . 11 11 16 16 Hackware 14 | . . 11 13 15 12 17 17 17 16 Protection 5 | . . . 2 3 15 4 5 . . Energy Gun 16 | . 28 30 25 12 15 17 17 16 16 Energy Cannon 1 | . . . . 5 . . . . . Peak Build Rating 69 | 9 9 16 20 41 59 62 60 65 69 Average Rating 45 | 5 9 14 17 34 53 59 60 62 63 On Entrance 32 | . 9 9 16 19 39 52 60 60 64 Naked Turns . | . . . . . . . . . . Heaviest Build 58 | 14 19 24 30 44 58 47 47 47 52 Greatest Support 60 | 20 20 20 35 60 60 55 55 55 55 Greatest Overweight (x) 2 | 1 . 2 2 2 1 . . . 2 Average Overweight (x) . | . . 1 . . . . . . . Largest Inventory Capacity 15 | 8 10 10 10 15 15 15 15 15 15 Average Capacity 13 | 7 9 10 10 10 15 15 15 15 15 Most Carried 15 | 3 7 10 10 14 15 15 15 15 15 Average Carried 12 | 1 4 7 9 9 14 14 15 14 14 Final Capacity 15 | 8 10 10 10 15 15 15 15 15 15 Final Carried 15 | 3 7 10 9 14 15 15 15 15 9 Class Distribution -------------------- 35% | Scavenger-Gunner 24% | Scavenger-Tank 9% | Scavenger-Mutant 6% | Hacker-Mutant 5% | Hacker-Tank 5% | Mutant 4% | Hacker-Gunner 3% | Skirmisher Dominant Class ---------------- Mutant | -10/Materials Skirmisher | -9/Materials Hacker-Gunner | -8/Materials Hacker-Mutant | -7/Factory Scavenger-Tank | -6/Factory Scavenger-Gunner | -5/Factory Scavenger-Gunner | -5/Upper Caves Scavenger-Gunner | -5/Upper Caves Scavenger-Gunner | -5/Warlord Resources | -11 -10 -9 -8 -7 -6 -5 -5 -5 -5 ----------- Run | Yrd Mat Mat Mat Fac Fac Fac Upp Upp War Matter Collected 1973 | 146 134 49 299 335 525 . 63 130 292 Remotely . | . . . . . . . . . . Salvage Created 3430 | 11 12 49 528 729 1232 . . 458 411 Parts 155 | 3 4 3 27 43 47 . . 14 14 Haulers Intercepted . | . . . . . . . . . . Recyclers Shooed 3 | . . . . . 3 . . . . Parts Field Recycled . | . . . . . . . . . . Retrieved Matter . | . . . . . . . . . . Parts Self-Destructed 6 | . . . . . . . . 6 . Prevented 7 | . . . . . . . 4 3 . Kills | -11 -10 -9 -8 -7 -6 -5 -5 -5 -5 ------- Run | Yrd Mat Mat Mat Fac Fac Fac Upp Upp War Combat Hostiles Destroyed 66 | . . 1 14 16 18 . . 7 10 Guns 45 | . . 1 13 9 12 . . 6 4 Cannons 6 | . . . . 5 1 . . . . AOE 12 | . . . . 1 5 . . . 6 Classes Destroyed 11 | 1 1 1 4 4 . . . . . Worker 3 | . . . 1 2 . . . . . Tunneler 2 | 1 . . . 1 . . . . . Recycler 5 | . . . . 3 2 . . . . Operator 5 | . 1 1 1 . 2 . . . . Swarmer 14 | . . . 6 8 . . . . . Grunt 28 | . . 1 3 2 9 . . 5 8 Sentry 6 | . . . 3 . 2 . . 1 . Specialist 3 | . . . . 2 . . . . 1 Hunter 10 | . . . 2 2 4 . . 1 1 Programmer 4 | . . . . 1 3 . . . . Heavy 1 | . . . . 1 . . . . . Best Kill Streak 7 | 1 1 1 6 5 4 . . 3 7 Combat Bots Only 7 | . . 1 5 4 4 . . 3 7 Max Kills in Single Turn 4 | 1 1 1 2 2 3 . . 1 4 Gunslinging 1 | . . . 1 1 . . . . 1 Exploded 4 | . . . . 1 3 . . . 4 Melee . | . . . . . . . . . . Uniques/NPCs Destroyed . | . . . . . . . . . . Combat | -11 -10 -9 -8 -7 -6 -5 -5 -5 -5 -------- Run | Yrd Mat Mat Mat Fac Fac Fac Upp Upp War Hostile Shots Fired 674 | . . 3 92 117 198 . 3 87 174 Missed 200 | . . 2 25 34 50 . 1 30 58 Damage Taken 9041 | . . 11 1034 1753 2544 . 34 1052 2613 Core 1936 | . . . 224 370 332 . . 203 807 Absorbed by Shields . | . . . . . . . . . . Redirected to Shielding 132 | . . . . 3 79 . . 50 . Regen/Repaired (Parts) 352 | . . . . . 148 31 . . 173 Core Remaining (%) 77 | 100 100 100 59 47 60 . . . . Volleys Fired 198 | 1 3 5 44 45 57 . . 23 20 Largest 3 | 2 2 3 3 3 3 . . 3 3 Hottest 220 | 90 90 171 171 220 218 . . 218 213 Shots Fired 549 | 2 6 15 124 125 165 . . 66 46 Gun 491 | 2 6 15 124 82 158 . . 66 38 Cannon 50 | . . . . 43 7 . . . . Launcher 8 | . . . . . . . . . 8 Special . | . . . . . . . . . . Kinetic 62 | . . . 10 . 52 . . . . Thermal 426 | 2 6 15 114 110 102 . . 51 26 Explosive 8 | . . . . . . . . . 8 Electromagnetic 41 | . . . . 15 11 . . 15 . Entropic 12 | . . . . . . . . . 12 Robot Hit Streak 25 | 1 3 4 10 12 12 . . 25 15 Robot Miss Streak 6 | 1 2 5 5 6 5 . . 2 2 Penetration Max . | . . . . . . . . . . Secondary Targets 11 | . . . 4 1 3 . . 2 1 Max Gunslinging Chain 1 | . . . 1 1 1 . . 1 1 Shots Hit Robots 372 | 1 3 6 70 82 124 . . 56 30 Core Hits 195 | 1 2 3 29 44 69 . . 21 26 Critical Kills . | . . . . . . . . . . Critical Parts Destroyed 3 | . . . . . . . . . 3 Critical Strikes 19 | . . . 4 1 3 . . 6 5 Burn 15 | . . . 4 1 3 . . 5 2 Corrupt 1 | . . . . . . . . 1 . Detonate 3 | . . . . . . . . . 3 Melee Attacks 30 | . . 1 2 25 2 . . . . Impact 24 | . . 1 2 21 . . . . . Slashing 6 | . . . . 4 2 . . . . Piercing . | . . . . . . . . . . Sneak Attacks . | . . . . . . . . . . Combat Hostiles . | . . . . . . . . . . Follow-up Attacks . | . . . . . . . . . . Damage Inflicted 9346 | 10 36 86 953 1788 2873 . . 1061 2539 Guns 6555 | 10 36 86 953 1144 2477 . . 1061 788 Cannons 608 | . . . . 444 164 . . . . Explosions 2166 | . . . . 200 215 . . . 1751 Melee . | . . . . . . . . . . Ramming 17 | . . . . . 17 . . . . Kinetic 620 | . . . 63 . 557 . . . . Thermal 6546 | 10 36 86 890 1724 2113 . . 846 841 Explosive 1303 | . . . . . . . . . 1303 Electromagnetic 465 | . . . . 64 186 . . 215 . Impact . | . . . . . . . . . . Slashing . | . . . . . . . . . . Piercing . | . . . . . . . . . . Entropic 395 | . . . . . . . . . 395 Highest Corruption 11 | . . . . . 2 . . 2 11 Average Corruption 2 | . . . . . 2 . . 2 3 Corruption Purged . | . . . . . . . . . . Corruption Blocked . | . . . . . . . . . . Effects 23 | . . . . . 17 . . 6 . Message Errors 4 | . . . . . 2 . . 2 . Matter Fused 6 | . . . . . 5 . . 1 . Heat Flow Errors 5 | . . . . . 4 . . 1 . Energy Discharges 3 | . . . . . 3 . . . . Parts Fused 1 | . . . . . 1 . . . . Data Loss (minor) 1 | . . . . . 1 . . . . Data Loss (major) 1 | . . . . . . . . 1 . Misfires 2 | . . . . . 1 . . 1 . Overload Shots . | . . . . . . . . . . Overflow Damage 105 | . . . . 33 . . . . 72 Projectiles 4 | . . . . 4 . . . . . Explosions 101 | . . . . 29 . . . . 72 Melee . | . . . . . . . . . . Knockbacks . | . . . . . . . . . . Impact . | . . . . . . . . . . Kinetic . | . . . . . . . . . . Secondary . | . . . . . . . . . . Self-Inflicted Damage 208 | . . . . 136 . . . . 72 Shots 3 | . . . . 2 . . . . 1 Rammed . | . . . . . . . . . . Targets Rammed 1 | . . . . . 1 . . . . Kicked 1 | . . . . . 1 . . . . Crushed . | . . . . . . . . . . Highest Temperature 742 | 30 60 204 742 357 354 . . 148 153 Average Temperature 150 | 18 27 76 263 108 111 . . 31 59 Received Heat Transfer 2052 | . . 6 324 144 567 . . 468 543 Effects 26 | . . . 24 1 1 . . . . Shutdowns 6 | . . . 6 . . . . . . Energy Bleed 1 | . . . . 1 . . . . . Matter Decay 3 | . . . 3 . . . . . . Short Circuit 2 | . . . 1 . 1 . . . . Damage (minor) 1 | . . . 1 . . . . . . Damage (major) 12 | . . . 12 . . . . . . Damage (core) 1 | . . . 1 . . . . . . Siege Activations . | . . . . . . . . . . Robots Corrupted . | . . . . . . . . . . Combat Hostiles . | . . . . . . . . . . Parts Fried 1 | . . . . . 1 . . . . Impact Corruptions . | . . . . . . . . . . Robots Melted 3 | . . . 1 1 . . . 1 . Combat Hostiles 3 | . . . 1 1 . . . 1 . Parts Melted 28 | . . 2 9 8 6 . . 3 . Heat Transferred 13438 | 25 99 222 2581 3347 4214 . . 2026 924 Parts Sabotaged . | . . . . . . . . . . Parts Stolen . | . . . . . . . . . . Parts Stripped . | . . . . . . . . . . Power Chain Reactions 1 | . . . . . 1 . . . . Alert | -11 -10 -9 -8 -7 -6 -5 -5 -5 -5 ------- Run | Yrd Mat Mat Mat Fac Fac Fac Upp Upp War Peak Influence 341 | 5 23 51 321 341 221 98 . . . Initial 99 | . 3 9 21 67 99 63 . . . Average 104 | 1 4 22 123 157 77 93 . . . Maximum Alert Level 1 | . . . 1 1 1 . . . . Low Security (%) 85 | 100 100 100 83 67 98 100 . . . Level 1 14 | . . . 16 32 1 . . . . Level 2 . | . . . . . . . . . . Level 3 . | . . . . . . . . . . Level 4 . | . . . . . . . . . . Level 5 . | . . . . . . . . . . High Security . | . . . . . . . . . . Max Security . | . . . . . . . . . . Squads Dispatched 19 | . 1 1 1 7 9 . . . . Investigation 3 | . . . 1 2 . . . . . Extermination 6 | . . . . 2 4 . . . . Reinforcement 7 | . 1 1 . 3 2 . . . . Assault . | . . . . . . . . . . Garrison 3 | . . . . . 3 . . . . Intercept . | . . . . . . . . . . Searches Triggered . | . . . . . . . . . . Construction Impeded . | . . . . . . . . . . Haulers Reinforced . | . . . . . . . . . . Active Scanning Responses . | . . . . . . . . . . Cargo Convoy Interrupts 1 | . . . . 1 . . . . . Stealth | -11 -10 -9 -8 -7 -6 -5 -5 -5 -5 --------- Run | Yrd Mat Mat Mat Fac Fac Fac Upp Upp War Distress Signals 2 | . . . 2 . . . . . . Communications Jammed . | . . . . . . . . . . Distress Signals . | . . . . . . . . . . Times Spotted 136 | . 2 2 17 23 25 . 1 8 58 Peak Tracking Total 14 | . 1 1 6 4 5 . 2 5 14 Tactical Retreats 7 | . . . 1 2 . . . . 4 Traps | -11 -10 -9 -8 -7 -6 -5 -5 -5 -5 ------- Run | Yrd Mat Mat Mat Fac Fac Fac Upp Upp War Traps Triggered 2 | . . . . 1 1 . . . . Indirectly . | . . . . . . . . . . Trap Hack Attempts . | . . . . . . . . . . Triggered . | . . . . . . . . . . Disarmed . | . . . . . . . . . . Reprogrammed . | . . . . . . . . . . Reused . | . . . . . . . . . . Traps Extracted . | . . . . . . . . . . Installed . | . . . . . . . . . . Triggered 22 | . . . . 1 . . . 3 18 Machines | -11 -10 -9 -8 -7 -6 -5 -5 -5 -5 ---------- Run | Yrd Mat Mat Mat Fac Fac Fac Upp Upp War Machines Disabled 4 | . . . . 4 . . . . . Max in Single Turn 4 | . . . . 4 . . . . . Garrison Access 1 | . . . . 1 . . . . . Machines Repaired . | . . . . . . . . . . Machines Dismantled . | . . . . . . . . . . Machines Sabotaged . | . . . . . . . . . . Overloaded Fab Kills . | . . . . . . . . . . Hacking | -11 -10 -9 -8 -7 -6 -5 -5 -5 -5 --------- Run | Yrd Mat Mat Mat Fac Fac Fac Upp Upp War Machines Accessed 29 | . 1 3 3 7 3 4 . . 8 Terminals 12 | . . 3 3 4 1 1 . . . Fabricators 2 | . . . . 1 . 1 . . . Repair Stations 2 | . . . . . 1 1 . . . Recycling Units 3 | . 1 . . . 1 1 . . . Scanalyzers 1 | . . . . 1 . . . . . Garrison Access 1 | . . . . 1 . . . . . Total Hacks 65 | . 2 7 7 17 7 9 . . 16 Successful 50 | . 1 3 4 12 6 8 . . 16 Failed 15 | . 1 4 3 5 1 1 . . . Catastrophic 4 | . . . 1 3 . . . . . Database Lockouts . | . . . . . . . . . . Manual 23 | . . 7 5 6 2 3 . . . Terminals 31 | . . 7 7 12 2 3 . . . Fabricators 4 | . . . . 2 . 2 . . . Repair Stations 4 | . . . . . 2 2 . . . Recycling Units 7 | . 2 . . . 3 2 . . . Scanalyzers 1 | . . . . 1 . . . . . Garrison Access 2 | . . . . 2 . . . . . Terminal Hacks 35 | . . 3 4 8 1 3 . . 16 Record 10 | . . . . . . . . . 10 Part Schematic 4 | . . 2 1 . . 1 . . . Prototype ID Bank 6 | . . . 1 . . . . . 5 Open Door 1 | . . . . . . . . . 1 Terminal Index 2 | . . 1 . . . 1 . . . Fabricator Index 1 | . . . . . . 1 . . . Alert Level 2 | . . . 1 1 . . . . . Unreport Threat 1 | . . . . . 1 . . . . Locate Traps 2 | . . . . 2 . . . . . Dispatch Records 1 | . . . . 1 . . . . . Recall Extermination 1 | . . . . 1 . . . . . Recall Reinforcements 1 | . . . . 1 . . . . . Zone Layout 2 | . . . . 2 . . . . . Patrol Navigation 1 | . . . 1 . . . . . . Fabricator Hacks 3 | . . . . 2 . 1 . . . Load Schematic 2 | . . . . 1 . 1 . . . Build 1 | . . . . 1 . . . . . Repair Station Hacks 4 | . . . . . 2 2 . . . Scan Component 2 | . . . . . 1 1 . . . Repair 2 | . . . . . 1 1 . . . Recycling Unit Hacks 6 | . 1 . . . 3 2 . . . Report Inventory 3 | . 1 . . . 1 1 . . . Retrieve Matter 1 | . . . . . 1 . . . . Retrieve Components 2 | . . . . . 1 1 . . . Scanalyzer . | . . . . . . . . . . Garrison Access Hacks 2 | . . . . 2 . . . . . Seal Access 1 | . . . . 1 . . . . . Coupler Status 1 | . . . . 1 . . . . . Unauthorized Hacks . | . . . . . . . . . . Terminals . | . . . . . . . . . . Fabricators . | . . . . . . . . . . Repair Stations . | . . . . . . . . . . Recycling Units . | . . . . . . . . . . Scanalyzers . | . . . . . . . . . . Garrison Access . | . . . . . . . . . . Data Cores Recovered 1 | . . . 1 . . . . . . Used . | . . . . . . . . . . Hacking Detections 19 | . 1 3 3 5 3 4 . . . Full Trace Events 3 | . . . 1 2 . . . . . Feedback Events . | . . . . . . . . . . Feedback Blocked . | . . . . . . . . . . Robot Schematics Acquired . | . . . . . . . . . . Robots Built . | . . . . . . . . . . Authchips . | . . . . . . . . . . Time . | . . . . . . . . . . Total Robot Build Rating . | . . . . . . . . . . Part Schematics Acquired 4 | . . 2 1 . . 1 . . . Parts Built 2 | . . . . 2 . . . . . Authchips . | . . . . . . . . . . Time 51 | . . . . 51 . . . . . Total Part Build Rating 2 | . . . . 2 . . . . . Parts Repaired 2 | . . . . . 1 1 . . . Time 46 | . . . . . 38 8 . . . Parts Recycled . | . . . . . . . . . . Recycled Matter . | . . . . . . . . . . Retrieved Matter 94 | . . . . . 94 . . . . Retrieved Components 12 | . . . . . 9 3 . . . Parts Scanalyzed . | . . . . . . . . . . Part Schematics Acquired . | . . . . . . . . . . Parts Damaged . | . . . . . . . . . . Bothacking | -11 -10 -9 -8 -7 -6 -5 -5 -5 -5 ------------ Run | Yrd Mat Mat Mat Fac Fac Fac Upp Upp War Used RIF Installer . | . . . . . . . . . . Robots Hacked . | . . . . . . . . . . Non-combat . | . . . . . . . . . . Combat . | . . . . . . . . . . Robot Hacks Applied . | . . . . . . . . . . Relay Couplers Released . | . . . . . . . . . . Fabnet Peak Effective % . | . . . . . . . . . . Robots Rewired 5 | . . . . . . . . . 5 Allies Hacked . | . . . . . . . . . . Hacks Repelled . | . . . . . . . . . . Allies | -11 -10 -9 -8 -7 -6 -5 -5 -5 -5 -------- Run | Yrd Mat Mat Mat Fac Fac Fac Upp Upp War Total Allies 5 | . . . . . . . . . 5 Largest Group 5 | . . . . . . . . . 5 Highest-Rated Group 275 | . . . . . . . . . 275 Highest-Rated Ally 68 | . . . . . . . . . 68 Total Orders 1 | . . . . . . . . . 1 STAY 1 | . . . . . . . . . 1 Ally Attacks . | . . . . . . . . . . Total Damage . | . . . . . . . . . . Kills . | . . . . . . . . . . Allies Corrupted . | . . . . . . . . . . Allies Melted 1 | . . . . . . . . . 1 Intel | -11 -10 -9 -8 -7 -6 -5 -5 -5 -5 ------- Run | Yrd Mat Mat Mat Fac Fac Fac Upp Upp War Robot Analysis Total . | . . . . . . . . . . Derelict Logs Recovered 1 | . . . . . . . 1 . . Drone Launches . | . . . . . . . . . . Drone Recoveries . | . . . . . . . . . . Exploration | -11 -10 -9 -8 -7 -6 -5 -5 -5 -5 ------------- Run | Yrd Mat Mat Mat Fac Fac Fac Upp Upp War Turns Passed 7209 | 71 211 305 534 1799 1842 181 269 611 1386 Spaces Moved 4110 | 46 161 176 226 819 1007 126 214 377 958 Core 6 | 6 . . . . . . . . . Treads . | . . . . . . . . . . Legs 3898 | 40 161 30 176 818 1007 126 214 377 949 Wheels 206 | . . 146 50 1 . . . . 9 Hover . | . . . . . . . . . . Flight . | . . . . . . . . . . Fastest Speed 50 | 50 120 110 110 116 116 123 126 120 115 Average Speed 125 | 120 120 118 137 126 125 123 126 120 123 Slowest Speed 270 | 190 120 190 190 270 195 126 126 126 260 Overloaded Moves . | . . . . . . . . . . Propulsion Burnouts . | . . . . . . . . . . Robots Hopped . | . . . . . . . . . . Cave-ins Triggered . | . . . . . . . . . . Exploration Rate (%) 30 | 4 24 20 19 24 25 5 40 59 86 Regions Visited 9 Branch Regions 3 Pre-discovered Areas 1 | . . . . . . . 1 . . Known Exits Taken . | . . . . . . . . . . Unknown Exits Taken 9 | 1 1 1 1 1 1 1 1 1 . Scrap Searched 3 | . . . . . . . 1 2 . Spaces Dug 28 | . . 1 2 13 2 . . . 10 Terrain Destroyed 103 | . . 1 2 49 5 . . . 46 Melee 18 | . . 1 2 13 2 . . . . Projectile 4 | . . . . 1 . . . . 3 AOE 81 | . . . . 35 3 . . . 43 Terrain Rammed . | . . . . . . . . . . Walls Destroyed . | . . . . . . . . . . Machines Disabled . | . . . . . . . . . . Actions | -11 -10 -9 -8 -7 -6 -5 -5 -5 -5 --------- Run | Yrd Mat Mat Mat Fac Fac Fac Upp Upp War Total 5682 | 56 173 258 348 1433 1444 152 213 479 1126 Wait 1016 | . 4 66 46 458 289 14 . 62 77 Move 4101 | 45 160 175 225 818 1006 125 213 376 958 Hop . | . . . . . . . . . . Pick Up 82 | 3 4 3 6 29 19 5 . 3 10 Fast Attach 37 | 7 . . 5 3 13 1 . 2 6 Attach 48 | . . 3 6 14 10 2 . 5 8 Detach 4 | . . 1 . 1 2 . . . . Swap 80 | . 1 4 11 20 22 2 . 6 14 Drop 73 | . 1 . 3 20 23 3 . 2 21 Fire 198 | 1 3 5 44 45 57 . . 23 20 Melee 30 | . . 1 2 25 2 . . . . Ram . | . . . . . . . . . . Kick 1 | . . . . . 1 . . . . Crush . | . . . . . . . . . . Escape Stasis . | . . . . . . . . . . Rewire 12 | . . . . . . . . . 12 Trap . | . . . . . . . . . . Miscellaneous . | . . . . . . . . . . Route ------- -11/Scrapyard -10/Materials -9/Materials -8/Materials -7/Factory -6/Factory -5/Factory -5/Upper Caves -5/Upper Caves -5/Warlord History --------- Turn | Location | Event 10 | -11/Scrapyard | Discovered new exit (range 16) 72 | -11/Scrapyard | Entered Materials 223 | -10/Materials | Discovered new exit (range 6) 283 | -10/Materials | Entered another Materials area 283 | -9/Materials | Evolved 2 slots: Utility x1, Weapon x1 324 | -9/Materials | Build established: Mutant 582 | -9/Materials | Discovered new exit (range 4) 588 | -9/Materials | Entered another Materials area 588 | -8/Materials | Evolved 2 slots: Propulsion x1, Utility x1 1037 | -8/Materials | Discovered new exit (range 5) 1119 | -8/Materials | Lost 5 parts (1p2n2w) 1122 | -8/Materials | Entered Factory 1122 | -7/Factory | Evolved 2 slots: Utility x2 1589 | -7/Factory | Build established: Scavenger-Mutant 1935 | -7/Factory | Lost 4 parts (1n1u2w) 2110 | -7/Factory | Fabricated Utility Shielding (x2) 2275 | -7/Factory | Cargo convoy interrupted 2472 | -7/Factory | Build established: Hacker-Mutant 2612 | -7/Factory | Discovered new exit (range 9) 2807 | -7/Factory | Core integrity fell below 50% 2845 | -7/Factory | Build established: Hacker-Tank 2845 | -7/Factory | Lost 4 parts (1p2n1w) 2921 | -7/Factory | Entered another Factory area 2921 | -6/Factory | Evolved 2 slots: Utility x2 3015 | -6/Factory | Lost 5 parts (1p2u2w) 3181 | -6/Factory | Build established: Scavenger-Tank 3331 | -6/Factory | Lost 3 parts (3u) 4174 | -6/Factory | Repaired Hrd. Medium Armor Plating 4310 | -6/Factory | Garrison activated, responded to threat 4385 | -6/Factory | Lost 3 parts (2u1w) 4697 | -6/Factory | Discovered new exit (range 16) 4763 | -6/Factory | Entered another Factory area 4763 | -5/Factory | Evolved 2 slots: Utility x2 4785 | -5/Factory | Repaired Utility Shielding 4893 | -5/Factory | Discovered new exit (range 4) 4944 | -5/Factory | Entered Upper Caves 5034 | -5/Upper Caves | Encountered a Warlord checkpoint 5052 | -5/Upper Caves | Build established: Scavenger-Gunner 5190 | -5/Upper Caves | Discovered new exit (range 8) 5213 | -5/Upper Caves | Entered another Upper Caves area 5306 | -5/Upper Caves | Lost 5 parts (1p2u2w) 5378 | -5/Upper Caves | Attracted the attention of an 0b10 checkpoint 5545 | -5/Upper Caves | Encountered a Warlord checkpoint 5745 | -5/Upper Caves | Discovered new exit (range 8) 5824 | -5/Upper Caves | Entered Warlord 5866 | -5/Warlord | System corruption cleaned by Quarantine Array 6427 | -5/Warlord | Visited the Vortex Lab 6436 | -5/Warlord | Found Prototype Energy Gun 6436 | -5/Warlord | Identified Vortex Shotgun 6443 | -5/Warlord | Warlord's base attacked by MAIN.C 6446 | -5/Warlord | Found Prototype Energy Gun 6446 | -5/Warlord | Identified Vortex Rifle 6449 | -5/Warlord | Found Vortex Rifle 6662 | -5/Warlord | Spotted B-75 Beast 6753 | -5/Warlord | Warlord forces counterattacked 6755 | -5/Warlord | Spotted Striker 6755 | -5/Warlord | Spotted Striker 6892 | -5/Warlord | Spotted B-86 Titan 6917 | -5/Warlord | Lost 21 allies 6969 | -5/Warlord | Met Warlord 7118 | -5/Warlord | Warlord base infiltrated, sounded retreat 7138 | -5/Warlord | Spotted Executioner 7166 | -5/Warlord | Spotted Striker 7171 | -5/Warlord | Destroyed 7 combat bots 7172 | -5/Warlord | Core integrity fell below 50% 7197 | -5/Warlord | Spotted Executioner 7201 | -5/Warlord | Core integrity fell below 20% 7210 | -5/Warlord | System corruption reached 10% 7210 | -5/Warlord | Destroyed by P-80 Master with Gamma Rifle Last Messages --------------- P-70 Sage destroyed. Penetrated by Slug. Lgt. Fission Core destroyed. G-50 Soldier destroyed. P-70 Sage fails to hack 5M-K5E(Y). P-80 Master hacks 5M-K5E(Y), rebooting. Penetrated by Slug. Adv. Cooling System destroyed. Acquired 30 matter. Executioner suffers critical hit (Blast). Executioner destroyed. Gatling Laser destroyed. Targeting Computer destroyed. Vortex Rifle destroyed. Acquired 7 matter. Adv. Heat Sink destroyed. Acquired Corrupted Hvy. Laser. Integrated Corrupted Hvy. Laser (+3). Complication: Com. Wheel rejected. G-50 Soldier destroyed. Map ----- +----------------------------------------------------+ | #???????#""""""""""""#??# """ #?# | | #???????#" #??# """ ##?# | | #???????#" ^#### """ #??# X X | | #???????#" + """ #??##""" | | #???????#"" +^ ^ """ #???#### | | #???????#" + ######## | | ?????????#" #### ^ # #### | | +######?????#" #??# ###??# | | ####??#"""""""" #??# #????# | | # "#??######### #??# %!= #????# !! | | """ # X#?????????# #??# *! #????# ! / | | """ # "#?????????" #?###!" """????# // | | """ + "#?????????" #?# " ""#### | | ####?????????" #?# + | | #????????????#X #?# % # | | ###/######????????#######?# % ### | | ## #????????????????# %% | | ## #???????????????## = | | ## #??????###??????#" # % | | # ######## ########" ### =%% | | ## + =%%%" % #?# !%= # | | ## ############"" ##" %#??# | | ## #????????????#%##" %% #??# % % | | # #????????????# "##;;; ;;####" %* | | # #????????????# #;;;! !! !%%p == % | | # #????????????#!@!= !!!% gg % !% | | # #??????#######%%%=%[ [ p =% = | | ###########?????##""""##=[ [ " %== | | ????????????????#"" " #%%% " %*% | | ????????????????#" ;!!%!=[ = " # !! | | ????????????????#" #### =!%[ [%< ! " ! | | ????????????????#" X"?# *! % = #### | | ????????????????##""""## *% | | ?????????????????##########/ # # % ! | | ##############????????????# !% | | """""""""""""#????????????# #!*!=* | | """ """""""#????????????# *! [ ##+##### | | """"X ""#????????????# """" "* ## | | """ ""#????????????# """" % ##"""" | | " ""#????????????# """" # ##" | | ] ""#????????????# """" # ##" " | | """[ ""#????????????# # ##" " | | """" "######################## ##""""""" | | """"[ [ ## ^ ######### | | """""""[ ## ###################### ##??????? | | ########### ## # #?????????????# #??????? | | ###########++## # #?????????????# ##??????? | | ## # #?????????????# #?????### | | ## # #?????????????# #?????# | | ## + #?????????????# #?????# | +----------------------------------------------------+ Best States ------------- Heat Dissipation 109 Energy Generation 21 Energy Capacity 310 Matter Stores 300 Matter Capacity 300 Sight Range 16 Robot Scan Range 15 Terrain Scan Range 16 Terrain Scan Density 10 Armor Coverage 375 Utility Shielding 33 Evasion (%) 55 Targeting Accuracy 10 Target Analysis 5 Offensive Hacking 30 Item Schematics ----------------- Utility Shielding | -9/Materials | Hacked ECM Suite | -9/Materials | Hacked Heat Sink | -8/Materials | Hacked Hacking Suite | -5/Factory | Hacked Robot Schematics ------------------ None Fabricated ------------ Utility Shielding | x2 | -7/Factory Alien Tech Used ----------------- None Achievements -------------- A Powerful Ally? Challenges ------------ None Game ------ Seed FactoryEnergyLog Manual? 0 Play Time 01:32:20 Cumulative 30.7 hours Start 2025.01.09 @ 13:17:59 End 2025.01.09 @ 15:06:50 Sessions 1 Manual Loads 0 Difficulty Rogue Special Mode None Game No. 47 Rogue 29 Adventurer 17 Explorer 1 Win Type - Total 3 Types 3/0/0/0/0/0/0/0/0 Lore% 9 Gallery% 34 Achievement% 32 Wizard Run 0 Options --------- Layout 1 ASCII 0 Keyboard 0 Movement Arrows Keybinds 0 Fullscreen 1 Font 24/Smallcaps Map View 50x35 Zoom Use 0% Tactical HUD 0 Map Filters NONE Filters NONE Steam 1 RUN: c782de5c-71c1-4489-8035-a10c61d0a95c